[Event "Titled Tuesday Blitz October 11 Late 2022"]
[White "Rubio Tent, Francisco"]
[Black "Potula, Kapish"]
[WhiteFideId "2238233"]
[BlackFideId "30903270"]
[WhiteElo "2211"]
[BlackElo "1998"]
[Result "1-0"]
[Round "08"]
[TimeControl "180+1"]
[Date "2022.10.12"]
[WhiteClock "0:01:11"]
[BlackClock "0:00:09"]

1. e4 {[%clk 0:02:56]}  e6 {[%clk 0:02:59]} 2. d4 {[%clk 0:02:55]}  d5 {[%clk 0:02:59]} 3. exd5 {[%clk 0:02:56]}  exd5 {[%clk 0:02:58]} 4. Nf3 {[%clk 0:02:57]}  Nf6 {[%clk 0:02:57]} 5. c4 {[%clk 0:02:58]}  c6 {[%clk 0:02:57]} 6. Nc3 {[%clk 0:02:59]}  Bd6 {[%clk 0:02:55]} 7. cxd5 {[%clk 0:02:57]}  Nxd5 {[%clk 0:02:52]} 8. Bd3 {[%clk 0:02:58]}  O-O {[%clk 0:02:50]} 9. O-O {[%clk 0:02:58]}  h6 {[%clk 0:02:48]} 10. h3 {[%clk 0:02:57]}  Nd7 {[%clk 0:02:40]} 11. Re1 {[%clk 0:02:57]}  Re8 {[%clk 0:02:15]} 12. Rxe8+ {[%clk 0:02:46]}  Qxe8 {[%clk 0:02:14]} 13. Nxd5 {[%clk 0:02:40]}  cxd5 {[%clk 0:02:11]} 14. Be3 {[%clk 0:02:38]}  Nf6 {[%clk 0:01:58]} 15. Rc1 {[%clk 0:02:36]}  Bd7 {[%clk 0:01:52]} 16. Bb1 {[%clk 0:02:33]}  Ne4 {[%clk 0:01:30]} 17. Qb3 {[%clk 0:02:21]}  Bc6 {[%clk 0:01:20]} 18. a3 {[%clk 0:02:15]}  Rc8 {[%clk 0:00:58]} 19. Qd3 {[%clk 0:02:14]}  a6 {[%clk 0:00:50]} 20. Ba2 {[%clk 0:01:58]}  Bb5 {[%clk 0:00:31]} 21. Qd1 {[%clk 0:01:56]}  Rxc1 {[%clk 0:00:24]} 22. Qxc1 {[%clk 0:01:57]}  Bc6 {[%clk 0:00:24]} 23. Qd1 {[%clk 0:01:44]}  Qe6 {[%clk 0:00:22]} 24. Nd2 {[%clk 0:01:37]}  Nxd2 {[%clk 0:00:18]} 25. Qxd2 {[%clk 0:01:35]}  Qg6 {[%clk 0:00:18]} 26. Kh1 {[%clk 0:01:29]}  Qe4 {[%clk 0:00:15]} 27. Qd1 {[%clk 0:01:24]}  f5 {[%clk 0:00:14]} 28. Bb1 {[%clk 0:01:23]}  Qe6 {[%clk 0:00:10]} 29. Qf3 {[%clk 0:01:23]}  Qf6 {[%clk 0:00:08]} 30. Bxf5 {[%clk 0:01:19]}  g6 {[%clk 0:00:05]} 31. Bg4 {[%clk 0:01:14]}  Qxf3 {[%clk 0:00:04]} 32. Bxf3 {[%clk 0:01:15]}  Kg7 {[%clk 0:00:04]} 33. Kg1 {[%clk 0:01:15]}  h5 {[%clk 0:00:03]} 34. h4 {[%clk 0:01:13]}  Kf6 {[%clk 0:00:03]} 35. Kf1 {[%clk 0:01:11]}  Bd7 {[%clk 0:00:02]} 36. Ke1 {[%clk 0:01:09]}  Bc6 {[%clk 0:00:03]} 37. Kd2 {[%clk 0:01:09]}  Ke6 {[%clk 0:00:02]} 38. Bg5 {[%clk 0:01:08]}  Bc7 {[%clk 0:00:01]} 39. Be2 {[%clk 0:01:08]}  b5 {[%clk 0:00:02]} 40. Bd3 {[%clk 0:01:08]}  Ba5+ {[%clk 0:00:02]} 41. Kc2 {[%clk 0:01:08]}  Bc7 {[%clk 0:00:03]} 42. Bxg6 {[%clk 0:01:08]}  Bd7 {[%clk 0:00:03]} 43. Bxh5 {[%clk 0:01:08]}  Kd6 {[%clk 0:00:04]} 44. Bf4+ {[%clk 0:01:08]}  Kc6 {[%clk 0:00:04]} 45. Bxc7 {[%clk 0:01:09]}  Kxc7 {[%clk 0:00:05]} 46. Bf3 {[%clk 0:01:09]}  Bf5+ {[%clk 0:00:06]} 47. Kd2 {[%clk 0:01:09]}  Kc6 {[%clk 0:00:07]} 48. h5 {[%clk 0:01:10]}  Bh7 {[%clk 0:00:07]} 49. h6 {[%clk 0:01:10]}  Kd6 {[%clk 0:00:08]} 50. g4 {[%clk 0:01:10]}  Ke6 {[%clk 0:00:08]} 51. g5 {[%clk 0:01:10]}  Kf5 {[%clk 0:00:09]} 52. Bxd5 {[%clk 0:01:10]}  Kxg5 {[%clk 0:00:09]} 53. Bb7 {[%clk 0:01:10]}  Kxh6 {[%clk 0:00:10]} 54. Bxa6 {[%clk 0:01:10]}  Kg5 {[%clk 0:00:10]} 55. Bxb5 {[%clk 0:01:11]}  Kf4 {[%clk 0:00:10]} 56. Bd3 {[%clk 0:01:11]}  Bg8 {[%clk 0:00:10]} 57. a4 {[%clk 0:01:12]}  Bd5 {[%clk 0:00:10]} 58. a5 {[%clk 0:01:12]}  Kf3 {[%clk 0:00:11]} 59. b4 {[%clk 0:01:10]}  Kxf2 {[%clk 0:00:11]} 60. b5 {[%clk 0:01:11]}  Kf3 {[%clk 0:00:11]} 61. a6 {[%clk 0:01:09]}  Kf4 {[%clk 0:00:11]} 62. b6 {[%clk 0:01:10]}  Bc6 {[%clk 0:00:09]} 63. b7 {[%clk 0:01:11]} 1-0


[Site "https://www.chess.com"]

[Event "Titled Tuesday Blitz October 11 Late 2022"]
[White "Rustemov, Alexander"]
[Black "Pert, Richard G"]
[WhiteFideId "4119002"]
[BlackFideId "404748"]
[WhiteElo "2865"]
[BlackElo "2441"]
[Result "1-0"]
[Round "08"]
[TimeControl "180+1"]
[Date "2022.10.11"]
[WhiteClock "0:00:19"]
[BlackClock "0:00:01"]

1. d4 {[%clk 0:03:00]}  d5 {[%clk 0:02:59]} 2. c4 {[%clk 0:03:01]}  e6 {[%clk 0:02:59]} 3. Nc3 {[%clk 0:03:01]}  c5 {[%clk 0:02:58]} 4. cxd5 {[%clk 0:03:01]}  cxd4 {[%clk 0:02:58]} 5. Qxd4 {[%clk 0:03:01]}  Nc6 {[%clk 0:02:58]} 6. Qd1 {[%clk 0:03:01]}  exd5 {[%clk 0:02:58]} 7. Qxd5 {[%clk 0:03:02]}  Qc7 {[%clk 0:02:58]} 8. Nf3 {[%clk 0:02:52]}  Nf6 {[%clk 0:02:57]} 9. Qd1 {[%clk 0:02:51]}  Bf5 {[%clk 0:02:46]} 10. e3 {[%clk 0:02:47]}  Rd8 {[%clk 0:02:45]} 11. Qa4 {[%clk 0:02:45]}  a6 {[%clk 0:02:39]} 12. Be2 {[%clk 0:02:38]}  Bd6 {[%clk 0:02:36]} 13. O-O {[%clk 0:02:37]}  O-O {[%clk 0:02:35]} 14. Rd1 {[%clk 0:02:33]}  Nb4 {[%clk 0:01:55]} 15. Nd4 {[%clk 0:02:09]}  Bd7 {[%clk 0:01:23]} 16. Qb3 {[%clk 0:02:05]}  Bxh2+ {[%clk 0:01:19]} 17. Kf1 {[%clk 0:02:05]}  Bd6 {[%clk 0:01:19]} 18. Bd2 {[%clk 0:02:01]}  Nc6 {[%clk 0:01:16]} 19. Nxc6 {[%clk 0:01:58]}  Bxc6 {[%clk 0:01:15]} 20. Be1 {[%clk 0:01:48]}  Qe7 {[%clk 0:01:13]} 21. Qc4 {[%clk 0:01:43]}  Ne4 {[%clk 0:00:54]} 22. Nxe4 {[%clk 0:01:38]}  Bxe4 {[%clk 0:00:55]} 23. f3 {[%clk 0:01:35]}  Bc6 {[%clk 0:00:51]} 24. e4 {[%clk 0:01:32]}  Bb5 {[%clk 0:00:37]} 25. Qc2 {[%clk 0:01:30]}  Bxe2+ {[%clk 0:00:19]} 26. Qxe2 {[%clk 0:01:31]}  Qe5 {[%clk 0:00:20]} 27. g3 {[%clk 0:01:24]}  Bc5 {[%clk 0:00:19]} 28. Kg2 {[%clk 0:01:18]}  Ba7 {[%clk 0:00:18]} 29. Bc3 {[%clk 0:01:17]}  Qc5 {[%clk 0:00:17]} 30. f4 {[%clk 0:00:57]}  f5 {[%clk 0:00:15]} 31. e5 {[%clk 0:00:48]}  Rfe8 {[%clk 0:00:14]} 32. Qf3 {[%clk 0:00:47]}  Qb6 {[%clk 0:00:12]} 33. Rxd8 {[%clk 0:00:37]}  Rxd8 {[%clk 0:00:12]} 34. Rd1 {[%clk 0:00:38]}  Rxd1 {[%clk 0:00:11]} 35. Qxd1 {[%clk 0:00:38]}  Qf2+ {[%clk 0:00:11]} 36. Kh3 {[%clk 0:00:38]}  h6 {[%clk 0:00:12]} 37. Qd3 {[%clk 0:00:27]}  Qg1 {[%clk 0:00:08]} 38. Qf3 {[%clk 0:00:24]}  g5 {[%clk 0:00:05]} 39. fxg5 {[%clk 0:00:21]}  hxg5 {[%clk 0:00:04]} 40. Qxf5 {[%clk 0:00:21]}  Qh1+ {[%clk 0:00:02]} 41. Kg4 {[%clk 0:00:21]}  Be3 {[%clk 0:00:01]} 42. Qg6+ {[%clk 0:00:19]}  Kf8 {[%clk 0:00:01]} 43. Bb4+ {[%clk 0:00:19]} 1-0


[Site "https://www.chess.com"]

[Event "Titled Tuesday Blitz October 11 Late 2022"]
[White "Sanchez, Robert"]
[Black "Sabar, Ethmane Daouda"]
[WhiteFideId "2034360"]
[BlackFideId "19600097"]
[WhiteElo "2412"]
[BlackElo "1950"]
[Result "0-1"]
[Round "08"]
[TimeControl "180+1"]
[Date "2022.10.12"]
[WhiteClock "0:00:43"]
[BlackClock "0:00:55"]

1. e4 {[%clk 0:03:00]}  e5 {[%clk 0:02:55]} 2. Nf3 {[%clk 0:03:01]}  Nc6 {[%clk 0:02:53]} 3. Bb5 {[%clk 0:03:01]}  f5 {[%clk 0:02:53]} 4. d3 {[%clk 0:03:00]}  fxe4 {[%clk 0:02:53]} 5. dxe4 {[%clk 0:03:00]}  Nf6 {[%clk 0:02:52]} 6. O-O {[%clk 0:03:00]}  Be7 {[%clk 0:02:50]} 7. Bc4 {[%clk 0:02:59]}  h6 {[%clk 0:02:47]} 8. Nc3 {[%clk 0:02:50]}  d6 {[%clk 0:02:46]} 9. h3 {[%clk 0:02:50]}  Na5 {[%clk 0:02:36]} 10. Qd3 {[%clk 0:02:48]}  Nxc4 {[%clk 0:02:36]} 11. Qxc4 {[%clk 0:02:48]}  Qd7 {[%clk 0:02:26]} 12. Rd1 {[%clk 0:02:46]}  Bd8 {[%clk 0:02:17]} 13. Nxe5 {[%clk 0:02:41]}  Qe6 {[%clk 0:02:13]} 14. Qxe6+ {[%clk 0:02:38]}  Bxe6 {[%clk 0:02:14]} 15. Nf3 {[%clk 0:02:38]}  O-O {[%clk 0:02:10]} 16. Be3 {[%clk 0:02:36]}  Nd7 {[%clk 0:02:02]} 17. Nd4 {[%clk 0:02:33]}  Bf7 {[%clk 0:01:57]} 18. f4 {[%clk 0:02:32]}  a6 {[%clk 0:01:57]} 19. a4 {[%clk 0:02:29]}  Nc5 {[%clk 0:01:56]} 20. b4 {[%clk 0:02:22]}  Nd7 {[%clk 0:01:48]} 21. Nf3 {[%clk 0:02:10]}  Nf6 {[%clk 0:01:38]} 22. e5 {[%clk 0:02:04]}  dxe5 {[%clk 0:01:39]} 23. Nxe5 {[%clk 0:02:03]}  Be6 {[%clk 0:01:36]} 24. Bc5 {[%clk 0:01:53]}  Re8 {[%clk 0:01:35]} 25. b5 {[%clk 0:01:44]}  axb5 {[%clk 0:01:30]} 26. Nxb5 {[%clk 0:01:36]}  Nh5 {[%clk 0:01:23]} 27. Nd3 {[%clk 0:01:19]}  Bc4 {[%clk 0:01:17]} 28. Rf1 {[%clk 0:01:01]}  Re2 {[%clk 0:01:11]} 29. g4 {[%clk 0:00:50]}  Nf6 {[%clk 0:01:00]} 30. Rf2 {[%clk 0:00:45]}  Rxf2 {[%clk 0:00:55]} 31. Kxf2 {[%clk 0:00:43]}  Bxb5 {[%clk 0:00:55]} 0-1


[Site "https://www.chess.com"]

[Event "Titled Tuesday Blitz October 11 Late 2022"]
[White "Sarana, Alexey"]
[Black "Girel, Joseph"]
[WhiteFideId "24133795"]
[BlackFideId "36033561"]
[WhiteElo "2689"]
[BlackElo "2281"]
[Result "1/2-1/2"]
[Round "08"]
[TimeControl "180+1"]
[Date "2022.10.11"]
[WhiteClock "0:00:07"]
[BlackClock "0:00:04"]

1. c4 {[%clk 0:03:00]}  e5 {[%clk 0:02:58]} 2. Nc3 {[%clk 0:03:01]}  Bb4 {[%clk 0:02:57]} 3. Nd5 {[%clk 0:02:58]}  Be7 {[%clk 0:02:57]} 4. Nf3 {[%clk 0:02:57]}  d6 {[%clk 0:02:53]} 5. d4 {[%clk 0:02:56]}  e4 {[%clk 0:02:53]} 6. Nd2 {[%clk 0:02:52]}  f5 {[%clk 0:02:53]} 7. e3 {[%clk 0:02:43]}  Nf6 {[%clk 0:02:53]} 8. Nf4 {[%clk 0:02:41]}  O-O {[%clk 0:02:49]} 9. h4 {[%clk 0:02:40]}  c5 {[%clk 0:02:39]} 10. Nb3 {[%clk 0:02:39]}  Nc6 {[%clk 0:02:37]} 11. Be2 {[%clk 0:02:38]}  Kh8 {[%clk 0:02:22]} 12. Bd2 {[%clk 0:02:34]}  cxd4 {[%clk 0:02:19]} 13. Nxd4 {[%clk 0:02:35]}  Nxd4 {[%clk 0:02:17]} 14. exd4 {[%clk 0:02:36]}  d5 {[%clk 0:02:17]} 15. c5 {[%clk 0:02:34]}  Ng4 {[%clk 0:02:14]} 16. g3 {[%clk 0:02:30]}  Bf6 {[%clk 0:02:06]} 17. Bxg4 {[%clk 0:02:26]}  fxg4 {[%clk 0:02:06]} 18. Be3 {[%clk 0:02:26]}  b6 {[%clk 0:02:03]} 19. b4 {[%clk 0:02:26]}  bxc5 {[%clk 0:02:02]} 20. bxc5 {[%clk 0:02:26]}  Ba6 {[%clk 0:01:59]} 21. Qa4 {[%clk 0:02:26]}  Bc4 {[%clk 0:01:54]} 22. Rb1 {[%clk 0:02:23]}  Qe7 {[%clk 0:01:31]} 23. Kd2 {[%clk 0:02:20]}  Rfb8 {[%clk 0:01:28]} 24. h5 {[%clk 0:01:57]}  Bg5 {[%clk 0:01:14]} 25. Qc6 {[%clk 0:01:38]}  Bxf4 {[%clk 0:01:13]} 26. Bxf4 {[%clk 0:01:37]}  e3+ {[%clk 0:01:13]} 27. fxe3 {[%clk 0:01:13]}  Qe4 {[%clk 0:01:09]} 28. Rxb8+ {[%clk 0:00:45]}  Rxb8 {[%clk 0:01:09]} 29. Bxb8 {[%clk 0:00:46]}  Qd3+ {[%clk 0:01:07]} 30. Kc1 {[%clk 0:00:47]}  Qxe3+ {[%clk 0:00:46]} 31. Kb1 {[%clk 0:00:12]}  Qd3+ {[%clk 0:00:18]} 32. Kc1 {[%clk 0:00:11]}  Qe3+ {[%clk 0:00:13]} 33. Kc2 {[%clk 0:00:12]}  Qd3+ {[%clk 0:00:11]} 34. Kc1 {[%clk 0:00:12]}  Qc3+ {[%clk 0:00:08]} 35. Kd1 {[%clk 0:00:12]}  Qxd4+ {[%clk 0:00:07]} 36. Kc1 {[%clk 0:00:07]}  Qe3+ {[%clk 0:00:04]} 37. Kd1 {[%clk 0:00:06]}  Qd3+ {[%clk 0:00:03]} 38. Kc1 {[%clk 0:00:07]}  Qc3+ {[%clk 0:00:03]} 39. Kd1 {[%clk 0:00:07]}  Qd4+ {[%clk 0:00:03]} 40. Kc1 {[%clk 0:00:06]}  Qe3+ {[%clk 0:00:03]} 41. Kd1 {[%clk 0:00:06]}  Qd3+ {[%clk 0:00:03]} 42. Kc1 {[%clk 0:00:07]}  Qe3+ {[%clk 0:00:04]} 1/2-1/2


[Site "https://www.chess.com"]

[Event "Titled Tuesday Blitz October 11 Late 2022"]
[White "Souleidis, Georgios"]
[Black "Melikhov, Evgeny V."]
[WhiteFideId "4206827"]
[BlackFideId "4122046"]
[WhiteElo "2401"]
[BlackElo "2169"]
[Result "1-0"]
[Round "08"]
[TimeControl "180+1"]
[Date "2022.10.12"]
[WhiteClock "0:00:04"]
[BlackClock "0:00:09"]

1. e4 {[%clk 0:03:00]}  e5 {[%clk 0:02:57]} 2. Nc3 {[%clk 0:03:00]}  Nf6 {[%clk 0:02:57]} 3. d4 {[%clk 0:03:00]}  exd4 {[%clk 0:02:50]} 4. Qxd4 {[%clk 0:03:01]}  Nc6 {[%clk 0:02:50]} 5. Qd3 {[%clk 0:03:02]}  d5 {[%clk 0:02:33]} 6. Bf4 {[%clk 0:02:43]}  dxe4 {[%clk 0:02:14]} 7. Qxd8+ {[%clk 0:02:38]}  Nxd8 {[%clk 0:02:03]} 8. Bxc7 {[%clk 0:02:17]}  Bg4 {[%clk 0:02:00]} 9. Be2 {[%clk 0:02:14]}  Bxe2 {[%clk 0:01:57]} 10. Ngxe2 {[%clk 0:02:14]}  Bb4 {[%clk 0:01:42]} 11. O-O-O {[%clk 0:02:04]}  O-O {[%clk 0:01:40]} 12. a3 {[%clk 0:02:01]}  Bxc3 {[%clk 0:01:38]} 13. Nxc3 {[%clk 0:02:01]}  Re8 {[%clk 0:01:33]} 14. Rhe1 {[%clk 0:01:59]}  Nc6 {[%clk 0:01:32]} 15. Re2 {[%clk 0:01:51]}  Re6 {[%clk 0:01:27]} 16. h3 {[%clk 0:01:36]}  a6 {[%clk 0:01:16]} 17. g4 {[%clk 0:01:33]}  h6 {[%clk 0:01:16]} 18. Bg3 {[%clk 0:01:29]}  Rae8 {[%clk 0:01:13]} 19. Nd5 {[%clk 0:01:08]}  Nxd5 {[%clk 0:01:07]} 20. Rxd5 {[%clk 0:01:09]}  g6 {[%clk 0:01:08]} 21. c4 {[%clk 0:00:51]}  Kg7 {[%clk 0:01:05]} 22. Kc2 {[%clk 0:00:51]}  f5 {[%clk 0:00:56]} 23. gxf5 {[%clk 0:00:47]}  gxf5 {[%clk 0:00:56]} 24. Kc3 {[%clk 0:00:47]}  Ne5 {[%clk 0:00:51]} 25. Bxe5+ {[%clk 0:00:43]}  Rxe5 {[%clk 0:00:51]} 26. Rd7+ {[%clk 0:00:39]}  R8e7 {[%clk 0:00:51]} 27. Rxe7+ {[%clk 0:00:39]}  Rxe7 {[%clk 0:00:50]} 28. b4 {[%clk 0:00:38]}  Kf6 {[%clk 0:00:50]} 29. c5 {[%clk 0:00:37]}  Ke5 {[%clk 0:00:50]} 30. a4 {[%clk 0:00:34]}  f4 {[%clk 0:00:48]} 31. Kc4 {[%clk 0:00:31]}  Rd7 {[%clk 0:00:40]} 32. b5 {[%clk 0:00:11]}  Rd4+ {[%clk 0:00:39]} 33. Kb3 {[%clk 0:00:12]}  axb5 {[%clk 0:00:36]} 34. axb5 {[%clk 0:00:12]}  Kd5 {[%clk 0:00:36]} 35. Rc2 {[%clk 0:00:11]}  Rd3+ {[%clk 0:00:22]} 36. Kb4 {[%clk 0:00:11]}  Rd4+ {[%clk 0:00:16]} 37. Ka5 {[%clk 0:00:11]}  Rc4 {[%clk 0:00:16]} 38. Rxc4 {[%clk 0:00:10]}  Kxc4 {[%clk 0:00:16]} 39. c6 {[%clk 0:00:11]}  bxc6 {[%clk 0:00:10]} 40. bxc6 {[%clk 0:00:12]}  Kd3 {[%clk 0:00:10]} 41. c7 {[%clk 0:00:12]}  Ke2 {[%clk 0:00:11]} 42. c8=Q {[%clk 0:00:13]}  Kxf2 {[%clk 0:00:11]} 43. Qg4 {[%clk 0:00:11]}  Ke3 {[%clk 0:00:09]} 44. Kb4 {[%clk 0:00:11]}  f3 {[%clk 0:00:09]} 45. Kc3 {[%clk 0:00:07]}  f2 {[%clk 0:00:09]} 46. Qg2 {[%clk 0:00:07]}  Ke2 {[%clk 0:00:09]} 47. Qxe4+ {[%clk 0:00:07]}  Kd1 {[%clk 0:00:09]} 48. Qf3+ {[%clk 0:00:06]}  Ke1 {[%clk 0:00:10]} 49. Qe3+ {[%clk 0:00:07]}  Kf1 {[%clk 0:00:09]} 50. Kd3 {[%clk 0:00:07]}  h5 {[%clk 0:00:09]} 51. Qg3 {[%clk 0:00:05]}  h4 {[%clk 0:00:09]} 52. Qxh4 {[%clk 0:00:03]}  Kg2 {[%clk 0:00:09]} 53. Qxf2+ {[%clk 0:00:03]}  Kxh3 {[%clk 0:00:09]} 54. Qg1 {[%clk 0:00:03]}  Kh4 {[%clk 0:00:09]} 55. Ke4 {[%clk 0:00:04]} 1-0


[Site "https://www.chess.com"]

[Event "Titled Tuesday Blitz October 11 Late 2022"]
[White "Sowul, Bartosz"]
[Black "Janaszak, Dawid"]
[WhiteFideId "1137590"]
[BlackFideId "1119206"]
[WhiteElo "2444"]
[BlackElo "2619"]
[Result "0-1"]
[Round "08"]
[TimeControl "180+1"]
[Date "2022.10.12"]
[WhiteClock "0:00:02"]
[BlackClock "0:00:11"]

1. e4 {[%clk 0:03:00]}  c5 {[%clk 0:03:00]} 2. Nc3 {[%clk 0:03:01]}  Nc6 {[%clk 0:02:59]} 3. Bb5 {[%clk 0:03:01]}  Nd4 {[%clk 0:02:57]} 4. Nf3 {[%clk 0:03:01]}  e6 {[%clk 0:02:55]} 5. O-O {[%clk 0:03:00]}  a6 {[%clk 0:02:55]} 6. Bd3 {[%clk 0:02:59]}  Nc6 {[%clk 0:02:54]} 7. a3 {[%clk 0:02:57]}  g5 {[%clk 0:02:52]} 8. b4 {[%clk 0:02:56]}  g4 {[%clk 0:02:52]} 9. Ne1 {[%clk 0:02:56]}  h5 {[%clk 0:02:47]} 10. Bb2 {[%clk 0:02:55]}  cxb4 {[%clk 0:02:39]} 11. axb4 {[%clk 0:02:51]}  Bg7 {[%clk 0:02:26]} 12. b5 {[%clk 0:02:49]}  Ne5 {[%clk 0:02:24]} 13. Be2 {[%clk 0:02:47]}  Ne7 {[%clk 0:02:03]} 14. d4 {[%clk 0:02:45]}  N5g6 {[%clk 0:02:03]} 15. e5 {[%clk 0:02:34]}  d5 {[%clk 0:01:55]} 16. exd6 {[%clk 0:02:23]}  Qxd6 {[%clk 0:01:45]} 17. Ne4 {[%clk 0:02:11]}  Qd5 {[%clk 0:01:38]} 18. Bd3 {[%clk 0:01:49]}  O-O {[%clk 0:01:17]} 19. c4 {[%clk 0:01:37]}  Qd8 {[%clk 0:01:17]} 20. Bc2 {[%clk 0:01:17]}  Nf5 {[%clk 0:01:16]} 21. Ra3 {[%clk 0:00:57]}  Nxd4 {[%clk 0:01:05]} 22. Rd3 {[%clk 0:00:49]}  e5 {[%clk 0:01:06]} 23. bxa6 {[%clk 0:00:44]}  Rxa6 {[%clk 0:01:04]} 24. c5 {[%clk 0:00:43]}  Bf5 {[%clk 0:00:58]} 25. f3 {[%clk 0:00:22]}  Qe7 {[%clk 0:00:39]} 26. Nd6 {[%clk 0:00:18]}  Bxd3 {[%clk 0:00:34]} 27. Bxd3 {[%clk 0:00:18]}  Nf4 {[%clk 0:00:20]} 28. Bxa6 {[%clk 0:00:17]}  bxa6 {[%clk 0:00:19]} 29. fxg4 {[%clk 0:00:17]}  Nde2+ {[%clk 0:00:16]} 30. Kh1 {[%clk 0:00:16]}  Qh4 {[%clk 0:00:17]} 31. Nf5 {[%clk 0:00:06]}  Qxg4 {[%clk 0:00:13]} 32. Nxg7 {[%clk 0:00:02]}  Ng3+ {[%clk 0:00:11]} 0-1


[Site "https://www.chess.com"]

[Event "Titled Tuesday Blitz October 11 Late 2022"]
[White "Stanisz, Patryk"]
[Black "Hemam, Moulaye Brahim"]
[WhiteFideId "1123106"]
[BlackFideId "19600054"]
[WhiteElo "2069"]
[BlackElo "2088"]
[Result "0-1"]
[Round "08"]
[TimeControl "180+1"]
[Date "2022.10.12"]
[WhiteClock "0:00:59"]
[BlackClock "0:01:25"]

1. c4 {[%clk 0:02:59]}  Nf6 {[%clk 0:02:59]} 2. Nc3 {[%clk 0:02:59]}  e6 {[%clk 0:02:58]} 3. d4 {[%clk 0:02:59]}  d5 {[%clk 0:02:58]} 4. Nf3 {[%clk 0:02:59]}  Be7 {[%clk 0:02:57]} 5. Bf4 {[%clk 0:02:57]}  O-O {[%clk 0:02:57]} 6. e3 {[%clk 0:02:56]}  Ne4 {[%clk 0:02:56]} 7. Nxe4 {[%clk 0:02:56]}  dxe4 {[%clk 0:02:55]} 8. Nd2 {[%clk 0:02:56]}  f5 {[%clk 0:02:52]} 9. Be2 {[%clk 0:02:50]}  c5 {[%clk 0:02:51]} 10. dxc5 {[%clk 0:02:44]}  Bxc5 {[%clk 0:02:52]} 11. a3 {[%clk 0:02:41]}  a5 {[%clk 0:02:49]} 12. Nb3 {[%clk 0:02:39]}  Be7 {[%clk 0:02:42]} 13. O-O {[%clk 0:02:35]}  Nc6 {[%clk 0:02:40]} 14. Qc2 {[%clk 0:02:33]}  e5 {[%clk 0:02:34]} 15. Rfd1 {[%clk 0:02:30]}  Qc7 {[%clk 0:02:33]} 16. Bg3 {[%clk 0:02:22]}  f4 {[%clk 0:02:30]} 17. Qxe4 {[%clk 0:02:10]}  fxg3 {[%clk 0:02:30]} 18. hxg3 {[%clk 0:02:11]}  Kh8 {[%clk 0:02:22]} 19. g4 {[%clk 0:02:06]}  Be6 {[%clk 0:02:09]} 20. Bd3 {[%clk 0:02:02]}  g6 {[%clk 0:01:58]} 21. Rac1 {[%clk 0:01:52]}  Rad8 {[%clk 0:01:54]} 22. f4 {[%clk 0:01:45]}  Bxg4 {[%clk 0:01:46]} 23. Rf1 {[%clk 0:01:41]}  Bf5 {[%clk 0:01:44]} 24. fxe5 {[%clk 0:01:15]}  Bxe4 {[%clk 0:01:43]} 25. Bxe4 {[%clk 0:01:15]}  Qxe5 {[%clk 0:01:37]} 26. Bd5 {[%clk 0:00:58]}  Qxe3+ {[%clk 0:01:35]} 27. Kh1 {[%clk 0:00:59]}  Qxb3 {[%clk 0:01:25]} 0-1


[Site "https://www.chess.com"]

[Event "Titled Tuesday Blitz October 11 Late 2022"]
[White "Storey, Charles H"]
[Black "Czernek, Tymon"]
[WhiteFideId "406686"]
[BlackFideId "1199510"]
[WhiteElo "2252"]
[BlackElo "2240"]
[Result "1-0"]
[Round "08"]
[TimeControl "180+1"]
[Date "2022.10.12"]
[WhiteClock "0:00:29"]
[BlackClock "0:00:12"]

1. e4 {[%clk 0:03:00]}  c5 {[%clk 0:02:58]} 2. Nf3 {[%clk 0:03:00]}  d6 {[%clk 0:02:58]} 3. d4 {[%clk 0:03:00]}  cxd4 {[%clk 0:02:59]} 4. Nxd4 {[%clk 0:03:01]}  Nf6 {[%clk 0:02:59]} 5. f3 {[%clk 0:03:01]}  a6 {[%clk 0:03:00]} 6. c4 {[%clk 0:03:01]}  h5 {[%clk 0:02:59]} 7. Nc3 {[%clk 0:03:01]}  g6 {[%clk 0:03:00]} 8. Be3 {[%clk 0:02:58]}  Bg7 {[%clk 0:03:00]} 9. Qd2 {[%clk 0:02:59]}  Nbd7 {[%clk 0:03:00]} 10. Be2 {[%clk 0:02:58]}  O-O {[%clk 0:02:59]} 11. O-O {[%clk 0:02:58]}  Qc7 {[%clk 0:02:52]} 12. Rfc1 {[%clk 0:02:57]}  b6 {[%clk 0:02:49]} 13. Nd5 {[%clk 0:02:53]}  Nxd5 {[%clk 0:02:45]} 14. cxd5 {[%clk 0:02:53]}  Qd8 {[%clk 0:02:45]} 15. Nc6 {[%clk 0:02:50]}  Qe8 {[%clk 0:02:46]} 16. Rab1 {[%clk 0:02:39]}  Bb7 {[%clk 0:02:44]} 17. b4 {[%clk 0:02:38]}  e6 {[%clk 0:02:43]} 18. dxe6 {[%clk 0:02:24]}  Qxe6 {[%clk 0:02:39]} 19. Bc4 {[%clk 0:02:18]}  Qf6 {[%clk 0:02:39]} 20. Bg5 {[%clk 0:02:09]}  Bh6 {[%clk 0:02:11]} 21. Bxh6 {[%clk 0:02:08]}  Bxc6 {[%clk 0:02:10]} 22. Bxf8 {[%clk 0:02:03]}  Rxf8 {[%clk 0:02:10]} 23. Bxa6 {[%clk 0:01:59]}  Ba8 {[%clk 0:01:56]} 24. Be2 {[%clk 0:01:38]}  Ne5 {[%clk 0:01:55]} 25. Rd1 {[%clk 0:01:33]}  Rd8 {[%clk 0:01:51]} 26. a4 {[%clk 0:01:31]}  d5 {[%clk 0:01:49]} 27. f4 {[%clk 0:01:26]}  Nc6 {[%clk 0:01:25]} 28. e5 {[%clk 0:01:25]}  Qe6 {[%clk 0:01:21]} 29. b5 {[%clk 0:01:25]}  Ne7 {[%clk 0:01:21]} 30. Bf3 {[%clk 0:01:16]}  Nf5 {[%clk 0:01:18]} 31. a5 {[%clk 0:01:09]}  d4 {[%clk 0:01:18]} 32. Bxa8 {[%clk 0:01:07]}  Rxa8 {[%clk 0:01:19]} 33. a6 {[%clk 0:01:06]}  Qd5 {[%clk 0:01:18]} 34. Qd3 {[%clk 0:00:50]}  h4 {[%clk 0:01:10]} 35. h3 {[%clk 0:00:47]}  Rd8 {[%clk 0:01:08]} 36. Ra1 {[%clk 0:00:41]}  Qa8 {[%clk 0:01:03]} 37. Qf3 {[%clk 0:00:38]}  Qxf3 {[%clk 0:00:35]} 38. gxf3 {[%clk 0:00:38]}  Kf8 {[%clk 0:00:35]} 39. a7 {[%clk 0:00:38]}  Ra8 {[%clk 0:00:35]} 40. Rdc1 {[%clk 0:00:34]}  Ne3 {[%clk 0:00:31]} 41. Rc6 {[%clk 0:00:33]}  Nd5 {[%clk 0:00:29]} 42. Rd6 {[%clk 0:00:31]}  Nxf4 {[%clk 0:00:12]} 43. Rxb6 {[%clk 0:00:31]}  Nd3 {[%clk 0:00:12]} 44. Rb8+ {[%clk 0:00:29]} 1-0


[Site "https://www.chess.com"]